Cogmind - Beta 13 @@@ ROGUE MODE // 2024.04.21 @ 22:58:57 Player: ThatBishHoly Result: Destroyed by G-47 Trooper with Particle Gun Performance ------------- Evolutions (2) 1000 Regions Visited (3) 600 Robots Destroyed (9) 45 Value Destroyed (297) 297 Prototype IDs (0) 0 Alien Tech Used (0) 0 Bonus (0) 0 TOTAL SCORE: 1942 Bonus ------- None Cogmind --------- Core Integrity 0/550 Matter 266/300 Energy 285/290 System Corruption 0% Temperature Cool (9) Movement Core (400) Ox7 Location -8/Materials Parts ------- > --- POWER (2) -------- Improved Deuterium Engine > --- PROPULSION (3) --- (None) > --- UTILITY (3) ------ Medium Storage Unit > --- WEAPON (3) ------- Great Axe > --- INVENTORY (10) --- Microactuators Tractor Beam Flak Gun Scrap Shield Fragment (32) Scrap Shield Fragment (30) Peak State ------------ > --- POWER ------------ Light Ion Engine Light Nuclear Core > --- PROPULSION ------- Gravmag System Gravmag System Gravmag System > --- UTILITY ---------- Medium Storage Unit Improved Terrain Scanner Hardlight Generator > --- WEAPON ----------- Flak Gun Great Axe > --- INVENTORY -------- Gravmag System Tractor Beam Flak Gun Great Axe Scrap Shield Fragment Scrap Shield Fragment [Rating: 32] Favorites ----------- Power Light Ion Engine Engine Light Ion Engine Power Core Light Nuclear Core Propulsion Light Treads Treads Light Treads Wheel Subdweller Monowheel Hover Unit Gravmag System Utility Medium Storage Unit Device Tractor Beam Storage Medium Storage Unit Hackware Hacking Suite Weapon Assault Rifle Energy Gun Subdweller Laser Ballistic Gun Assault Rifle Special Weapon Mining Laser Slashing Weapon Great Axe Build | -11 -10 -10 -8 ------- Run | Yrd Mat Sub Mat Slots Evolved 4 | . . . 4 Power 1 | . . . 1 Propulsion 1 | . . . 1 Utility 1 | . . . 1 Weapon 1 | . . . 1 Parts Attached 40 | 6 3 5 26 Power 5 | 1 . . 4 Engine 3 | 1 . . 2 Core 2 | . . . 2 Reactor . | . . . . Propulsion 14 | 2 . 2 10 Treads 2 | 2 . . . Leg . | . . . . Wheel 4 | . . 2 2 Hover 8 | . . . 8 Flight . | . . . . Utility 10 | 1 2 1 6 Device 7 | 1 1 1 4 Storage 2 | . 1 . 1 Processor . | . . . . Hackware 1 | . . . 1 Protection . | . . . . Artifact . | . . . . Weapon 11 | 2 1 2 6 Energy Gun 1 | . . 1 . Energy Cannon . | . . . . Ballistic Gun 6 | 2 . 1 3 Ballistic Cannon . | . . . . Launcher . | . . . . Special Weapon 1 | . 1 . . Impact Weapon . | . . . . Slashing Weapon 3 | . . . 3 Piercing Weapon . | . . . . Special Melee Weapon . | . . . . Unidentified Prototypes . | . . . . Parts Lost 13 | . . . 13 Power 2 | . . . 2 Propulsion 6 | . . . 6 Utility 3 | . . . 3 Weapon 2 | . . . 2 Highest Loss Streak 8 | . . . 8 To Critical Strikes . | . . . . Average Slot Usage (%) 87 | . 100 100 61 Engine 10 | . 14 14 4 Treads 16 | . 28 23 . Wheel 3 | . . 4 3 Hover 4 | . . . 14 Device 15 | . 16 16 13 Storage 10 | . 11 11 9 Energy Gun 1 | . . 2 . Ballistic Gun 11 | . 26 11 5 Special Weapon 8 | . 1 14 . Slashing Weapon 2 | . . . 6 Naked Turns . | . . . . Heaviest Build 37 | 8 18 19 37 Greatest Support 40 | 40 40 40 40 Greatest Overweight (x) 12 | . . . 12 Average Overweight (x) . | . . . . Largest Inventory Capacity 10 | 5 10 10 10 Average Capacity 9 | 5 9 8 10 Most Carried 10 | 5 4 6 10 Average Carried 4 | 1 3 4 6 Final Capacity 10 | 5 10 5 10 Final Carried 5 | 2 4 4 5 Class Distribution -------------------- 98% | Mutant Dominant Class ---------------- Mutant | -10/Materials Mutant | -10/Subcaves Mutant | -8/Materials Resources | -11 -10 -10 -8 ----------- Run | Yrd Mat Sub Mat Matter Collected 545 | 284 20 43 198 Remotely 63 | . 20 43 . Salvage Created 432 | 100 . . 332 Parts 21 | 6 . . 15 Haulers Intercepted . | . . . . Recyclers Shooed . | . . . . Parts Field Recycled . | . . . . Retrieved Matter . | . . . . Parts Self-Destructed 2 | . . 2 . Prevented . | . . . . Kills | -11 -10 -10 -8 ------- Run | Yrd Mat Sub Mat Combat Hostiles Destroyed 6 | . . . 6 Melee 6 | . . . 6 Classes Destroyed 6 | 2 . . 4 Builder 1 | . . . 1 Tunneler 1 | 1 . . . Recycler 1 | 1 . . . Grunt 4 | . . . 4 Brawler 1 | . . . 1 Sentry 1 | . . . 1 Best Kill Streak 2 | 1 . . 2 Combat Bots Only 2 | . . . 2 Max Kills in Single Turn 1 | 1 . . 1 Gunslinging . | . . . . Exploded . | . . . . Melee 1 | . . . 1 Uniques/NPCs Destroyed . | . . . . Combat | -11 -10 -10 -8 -------- Run | Yrd Mat Sub Mat Hostile Shots Fired 132 | . . . 132 Missed 33 | . . . 33 Damage Taken 1565 | . . . 1565 Core 559 | . . . 559 Absorbed by Shields 12 | . . . 12 Core Remaining (%) 100 | 100 . 100 . Volleys Fired 12 | 4 4 . 4 Largest 2 | 2 1 . 1 Hottest 100 | 40 100 . 28 Shots Fired 16 | 8 4 . 4 Gun 12 | 8 . . 4 Cannon . | . . . . Launcher . | . . . . Special 4 | . 4 . . Kinetic 12 | 8 . . 4 Thermal 4 | . 4 . . Explosive . | . . . . Electromagnetic . | . . . . Robot Hit Streak 8 | 3 . . 8 Robot Miss Streak 2 | 2 . . 2 Penetration Max . | . . . . Secondary Targets . | . . . . Shots Hit Robots 22 | 4 . . 18 Core Hits 16 | 3 . . 13 Critical Kills . | . . . . Critical Parts Destroyed . | . . . . Critical Strikes 1 | . . . 1 Sever 1 | . . . 1 Melee Attacks 18 | . . . 18 Impact . | . . . . Slashing 18 | . . . 18 Piercing . | . . . . Sneak Attacks 1 | . . . 1 Combat Hostiles . | . . . . Follow-up Attacks . | . . . . Damage Inflicted 769 | 48 . . 721 Guns 177 | 48 . . 129 Cannons . | . . . . Explosions . | . . . . Melee 592 | . . . 592 Ramming . | . . . . Kinetic 177 | 48 . . 129 Thermal . | . . . . Explosive . | . . . . Electromagnetic . | . . . . Impact . | . . . . Slashing 592 | . . . 592 Piercing . | . . . . Highest Corruption . | . . . . Average Corruption . | . . . . Corruption Purged . | . . . . Corruption Blocked . | . . . . Overload Shots . | . . . . Overflow Damage 34 | . . . 34 Projectiles . | . . . . Explosions . | . . . . Melee 34 | . . . 34 Knockbacks . | . . . . Impact . | . . . . Kinetic . | . . . . Secondary . | . . . . Self-Inflicted Damage . | . . . . Shots . | . . . . Rammed 1 | 1 . . . Targets Rammed 1 | 1 . . . Kicked . | . . . . Crushed . | . . . . Highest Temperature 22 | . 22 . 13 Average Temperature 10 | . 10 . 8 Received Heat Transfer 900 | . . . 900 Siege Activations . | . . . . Robots Corrupted . | . . . . Combat Hostiles . | . . . . Parts Fried . | . . . . Impact Corruptions . | . . . . Robots Melted . | . . . . Combat Hostiles . | . . . . Parts Melted . | . . . . Heat Transferred . | . . . . Parts Sabotaged . | . . . . Parts Stolen . | . . . . Parts Stripped . | . . . . Power Chain Reactions . | . . . . Alert | -11 -10 -10 -8 ------- Run | Yrd Mat Sub Mat Peak Influence 114 | 10 6 . 114 Initial 6 | . 6 . . Average 19 | 4 4 . 29 Maximum Alert Level . | . . . . Low Security (%) 100 | 100 100 . 100 Level 1 . | . . . . Level 2 . | . . . . Level 3 . | . . . . Level 4 . | . . . . Level 5 . | . . . . High Security . | . . . . Max Security . | . . . . Squads Dispatched 1 | . . . 1 Investigation 1 | . . . 1 Extermination . | . . . . Reinforcement . | . . . . Assault . | . . . . Garrison . | . . . . Intercept . | . . . . Searches Triggered . | . . . . Construction Impeded . | . . . . Haulers Reinforced . | . . . . Active Scanning Responses . | . . . . Cargo Convoy Interrupts . | . . . . Stealth | -11 -10 -10 -8 --------- Run | Yrd Mat Sub Mat Distress Signals . | . . . . Communications Jammed . | . . . . Distress Signals . | . . . . Times Spotted 14 | . . 1 13 Peak Tracking Total 4 | . . 2 4 Tactical Retreats . | . . . . Traps | -11 -10 -10 -8 ------- Run | Yrd Mat Sub Mat Traps Triggered 4 | . . . 4 Indirectly . | . . . . Trap Hack Attempts . | . . . . Triggered . | . . . . Disarmed . | . . . . Reprogrammed . | . . . . Reused . | . . . . Traps Extracted . | . . . . Installed . | . . . . Triggered 2 | . . 2 . Machines | -11 -10 -10 -8 ---------- Run | Yrd Mat Sub Mat Machines Disabled 1 | . . . 1 Max in Single Turn 1 | . . . 1 Machines Repaired . | . . . . Machines Dismantled . | . . . . Machines Sabotaged . | . . . . Overloaded Fab Kills . | . . . . Hacking | -11 -10 -10 -8 --------- Run | Yrd Mat Sub Mat Machines Accessed 4 | . 2 . 2 Terminals 4 | . 2 . 2 Fabricators . | . . . . Repair Stations . | . . . . Recycling Units . | . . . . Scanalyzers . | . . . . Garrison Access . | . . . . Total Hacks 12 | . 4 . 8 Successful 7 | . 2 . 5 Failed 5 | . 2 . 3 Catastrophic . | . . . . Database Lockouts . | . . . . Manual . | . . . . Terminals 12 | . 4 . 8 Fabricators . | . . . . Repair Stations . | . . . . Recycling Units . | . . . . Scanalyzers . | . . . . Garrison Access . | . . . . Terminal Hacks 7 | . 2 . 5 Alert Level 3 | . 1 . 2 Unreport Threat 2 | . 1 . 1 Zone Layout 2 | . . . 2 Fabricator Hacks . | . . . . Repair Station Hacks . | . . . . Recycling Unit Hacks . | . . . . Scanalyzer . | . . . . Garrison Access Hacks . | . . . . Unauthorized Hacks . | . . . . Terminals . | . . . . Fabricators . | . . . . Repair Stations . | . . . . Recycling Units . | . . . . Scanalyzers . | . . . . Garrison Access . | . . . . Data Cores Recovered . | . . . . Used . | . . . . Hacking Detections 3 | . 1 . 2 Full Trace Events 2 | . 1 . 1 Feedback Events . | . . . . Feedback Blocked . | . . . . Robot Schematics Acquired . | . . . . Robots Built . | . . . . Authchips . | . . . . Time . | . . . . Total Robot Build Rating . | . . . . Part Schematics Acquired . | . . . . Parts Built . | . . . . Authchips . | . . . . Time . | . . . . Total Part Build Rating . | . . . . Parts Repaired . | . . . . Time . | . . . . Parts Recycled . | . . . . Recycled Matter . | . . . . Retrieved Matter . | . . . . Retrieved Components . | . . . . Parts Scanalyzed . | . . . . Part Schematics Acquired . | . . . . Parts Damaged . | . . . . Bothacking | -11 -10 -10 -8 ------------ Run | Yrd Mat Sub Mat Used RIF Installer . | . . . . Robots Hacked . | . . . . Non-combat . | . . . . Combat . | . . . . Robot Hacks Applied . | . . . . Relay Couplers Released . | . . . . Fabnet Peak Effective % . | . . . . Robots Rewired . | . . . . Allies Hacked . | . . . . Hacks Repelled . | . . . . Allies | -11 -10 -10 -8 -------- Run | Yrd Mat Sub Mat Total Allies . | . . . . Largest Group . | . . . . Highest-Rated Group . | . . . . Highest-Rated Ally . | . . . . Total Orders . | . . . . Ally Attacks . | . . . . Total Damage . | . . . . Kills . | . . . . Allies Corrupted . | . . . . Allies Melted . | . . . . Intel | -11 -10 -10 -8 ------- Run | Yrd Mat Sub Mat Robot Analysis Total . | . . . . Derelict Logs Recovered 2 | . . 2 . Drone Launches . | . . . . Drone Recoveries . | . . . . Exploration | -11 -10 -10 -8 ------------- Run | Yrd Mat Sub Mat Turns Passed 1537 | 118 158 810 451 Spaces Moved 956 | 76 85 424 371 Core 48 | 27 . . 21 Treads 438 | 49 85 304 . Legs . | . . . . Wheels 195 | . . 120 75 Hover 275 | . . . 275 Flight . | . . . . Fastest Speed 50 | 50 160 110 52 Average Speed 121 | 120 160 145 85 Slowest Speed 650 | 160 160 160 650 Overloaded Moves . | . . . . Propulsion Burnouts . | . . . . Robots Hopped . | . . . . Cave-ins Triggered . | . . . . Exploration Rate (%) 10 | 5 14 11 12 Regions Visited 3 Branch Regions 1 Pre-discovered Areas . | . . . . Known Exits Taken . | . . . . Unknown Exits Taken 3 | 1 1 1 . Scrap Searched . | . . . . Spaces Dug . | . . . . Terrain Destroyed . | . . . . Melee . | . . . . Projectile . | . . . . AOE . | . . . . Terrain Rammed . | . . . . Walls Destroyed . | . . . . Machines Disabled . | . . . . Actions | -11 -10 -10 -8 --------- Run | Yrd Mat Sub Mat Total 1279 | 94 94 616 475 Wait 203 | . . 174 29 Move 953 | 75 84 423 371 Hop . | . . . . Pick Up 39 | 8 3 7 21 Fast Attach 3 | . . . 3 Attach 26 | 6 1 . 19 Detach . | . . . . Swap 11 | . 2 5 4 Drop 13 | . . 7 6 Fire 12 | 4 4 . 4 Melee 18 | . . . 18 Ram . | . . . . Kick . | . . . . Crush 1 | 1 . . . Escape Stasis . | . . . . Rewire . | . . . . Trap . | . . . . Miscellaneous . | . . . . Route ------- -11/Scrapyard -10/Materials -10/Subcaves -8/Materials (discovered 1 exit: Fac) History --------- Turn | Location | Event 5 | -11/Scrapyard | Discovered new exit (range 15) 119 | -11/Scrapyard | Entered Materials 271 | -10/Materials | Discovered new exit (range 2) 277 | -10/Materials | Entered Subcaves 306 | -10/Subcaves | Learned 2 Materials zone layouts 312 | -10/Subcaves | Build established: Mutant 325 | -10/Subcaves | Learned 2 Materials zone layouts 907 | -10/Subcaves | Shifting Twisted Machinery released Sub. Laser 940 | -10/Subcaves | Shifting Twisted Machinery released Sub. Monowheel 1049 | -10/Subcaves | Discovered new exit (range 6) 1087 | -10/Subcaves | Entered Materials 1087 | -8/Materials | Evolved 4 slots: Power x1, Propulsion x1, Utility x1, Weapon x1 1088 | -8/Materials | Identified exit to Factory 1420 | -8/Materials | Core integrity fell below 50% 1466 | -8/Materials | Lost 8 parts (1p4n1u2w) 1489 | -8/Materials | Core integrity fell below 20% 1538 | -8/Materials | Destroyed by G-47 Trooper with Particle Gun Last Messages --------------- 01433_ Sub. Monowheel destroyed. 01434_ Critical hit (Burn: +37). 01435_ Great Axe destroyed. 01437_ R-06 Scavenger collects Lgt. Ion Engine. 01441_ R-06 Scavenger collects Mining Laser. 01469_ Acquired Gravmag System. 01484_ Acquired Microactuators. 01486_ Sub. Monowheel destroyed. 01486_ Acquired Microactuators. 01493_ Acquired Imp. Deuterium Engine. 01511_ G-47 Trooper destroyed. 01512_ Gravmag System destroyed. 01513_ G-47 Trooper Lgt. Nuclear Core severed. 01518_ K-01 Serf collects debris. 01524_ G-47 Trooper destroyed. 01525_ Imp. Terrain Scanner destroyed. 01525_ K-01 Serf collects debris. 01532_ Acquired 55 matter. 01532_ Microactuators destroyed. 01534_ Imp. Deuterium Engine destroyed. Map ----- +----------------------------------------------------+ | ?????????????????????????????????????????????????? | | ?????????????????????????????????????????????????? | | ?????????????????????????????????????????????????? | | ?????????????????????????????????????????????????? | | ?????????????????????????????????????????????????? | | ?????????????????????????????????????????????????? | | ?????????????????????????????????????????????????? | | ?????????????????????????????????????????????????? | | ?????????????????????????????????????????????????? | | ?????????????????????????????????????????????????? | | ?##??????????????????????????????????????????????? | | ?????????????????????????????????????????????????? | | ?????????????????????????????????????????????????? | | ??????????????? ?????????????????????????????????? | | ????????????????????????????#????????????????????? | | ?????????????????????????#???????????????????????? | | ??????????????????????????????#??????????????????? | | ??????????????? ?? ??? ?????????#????????????????? | | ??????????????????????????????????#??????????????? | | ?????????????????????????????????????????????????? | | ????????????????????##???????????????????????????? | | ????????????? ???#???????????????????????????????? | | ??????????????????#??????????????????????????????? | | ????????????????????########???#?????????????????? | | ?????? ### #??##**!!!!#???# ????????????? | | ###??? #?# #???# *!!@g#?#####+##????????????? | | # #??? #?# #???# *%= #?# ????????????? | | # #??? ### ##??#### ### ????????????? | | # #???+##### ####### # """ ""??## """"" | | # #??? # """ ""??## """"" | | ###??? ##### T # """ ""??## """ | | ??? #???# # """ ??## | | ??? ###?# ####### # """ ??## | | ??? #####+#####???## ## ?########### | | ??? ## #????# ########???#????????#? | | ?????? + #????# #??????# ?#??????????# | | ?????? ## #????#% #??##??# ?#???????#??? | | ?????? ## #????# #???#??# ????????#???? | | ??????+#### ######^^ #????#?# ????????????? | | ?????? ## # T # #??#########?????????? | | ??????"" ## # # #??# #??????????# | | ??????"" ## # # #??# #???????#??? | | ??????"" ## # !#= #### ""##???####### | | ?????? ########### [+% #??# "#?#??#[[ / [ | | ?????? #?????????# *# #??# ""###??# / [ | | ?????? #?????????#= # #??# #??###| | | ??????####?????????# # #######+######## | | ???????????????????# # | | ???????????????????###### | | ??????????????????#?????# %= | +----------------------------------------------------+ Best States ------------- Heat Dissipation 31 Energy Generation 27 Energy Capacity 480 Matter Stores 300 Matter Capacity 300 Sight Range 16 Terrain Scan Range 16 Terrain Scan Density 10 Melee Speed Boost 20 Evasion (%) 54 Recoil Reduction 2 Offensive Hacking 10 Item Schematics ----------------- None Robot Schematics ------------------ None Fabricated ------------ Nothing Alien Tech Used ----------------- None Achievements -------------- None Challenges ------------ None Game ------ Seed LatentHardlightChronowheel Manual? 0 Play Time 00:22:49 Cumulative 11.0 hours Start 2024.04.21 @ 20:18:52 End 2024.04.21 @ 22:58:57 Sessions 3 Manual Loads 0 Difficulty Rogue Special Mode None Game No. 31 Rogue 31 Adventurer 0 Explorer 0 Win Type - Total 0 Types 0/0/0/0/0/0/0/0/0 Lore% 12 Gallery% 23 Achievement% 19 Wizard Run 0 Options --------- Layout 1 ASCII 0 Keyboard 0 Movement Arrows Keybinds 0 Fullscreen 1 Font 16/SmallcapsGlow Map View 50x40 Zoom Use 0% Tactical HUD 1 Map Filters NONE Filters NONE Steam SD RUN: 1543e6b5-1871-4b12-b988-093b0288bb96